fUST/lending_fUST_20250717
["ID","MTS","AMOUNT","RATE_DAILY","PERIOD"]
[372590164,1752695448326,-1536.37861,0.0002535,16]
[372590165,1752695448336,-500.68946202,0.000254,7]
[372590166,1752695448346,-854.82641357,0.00025417,13]
[372590167,1752695448356,-454.97942182,0.00025421,2]
[372590168,1752695448366,-541.04910487,0.00025421,2]
[372590169,1752695448375,-700.0,0.0002545,2]
[372590170,1752695448385,-1200.0,0.00025469,2]
[372590171,1752695448394,-500.0,0.00025472,2]
[372590172,1752695448404,-1200.0,0.00025537,2]
[372590173,1752695448414,-1200.0,0.00025542,2]
[372590174,1752695448423,-500.0,0.00025548,2]
[372590175,1752695448433,-205.0,0.0002556,2]
[372590176,1752695448443,-1200.0,0.00025579,2]
[372590177,1752695448453,-319.64,0.000256,31]
[372590178,1752695448462,-319.64,0.000256,31]
[372590179,1752695448472,-319.64,0.000256,31]
[372590180,1752695448482,-319.64,0.000256,31]
[372590181,1752695448492,-319.64,0.000256,31]
[372590182,1752695448502,-319.64,0.000256,31]
[372590183,1752695448512,-319.64,0.000256,31]
[372590184,1752695448523,-319.64,0.000256,31]
[372590185,1752695448535,-319.64,0.000256,31]
[372590186,1752695448545,-319.64,0.000256,31]
[372590187,1752695448555,-319.64,0.000256,31]
[372590188,1752695448565,-319.64,0.000256,31]
[372590189,1752695448575,-319.64,0.000256,31]
[372590190,1752695448584,-319.64,0.000256,31]
[372590191,1752695448594,-319.64,0.000256,31]
[372590192,1752695448604,-319.64,0.000256,31]
[372590193,1752695448615,-700.0,0.00025605,2]
[372590194,1752695448626,-700.0,0.00025612,2]
[372590195,1752695448636,-231.28369723,0.0002562,2]
[372590196,1752695448646,-700.0,0.00025643,2]
[372590197,1752695448658,-854.82641357,0.00025659,13]
[372590198,1752695448669,-700.0,0.00025663,2]
[372590199,1752695448680,-1200.0,0.00025681,2]
[372590200,1752695448690,-1200.0,0.00025694,2]
[372590201,1752695448700,-500.0,0.00025744,2]
[372590202,1752695448710,-580.51223073,0.00025746,2]
[372590203,1752695448720,-800.0,0.00025754,2]
[372590204,1752695448730,-500.0,0.00025754,2]
[372590205,1752695448740,-151.0,0.00025754,2]
[372590206,1752695448750,-700.0,0.00025772,2]
[372590207,1752695448760,-5227.86141569,0.0002579,2]
[372590208,1752695448770,-500.0,0.00025791,2]
[372590209,1752695448780,-2000.0,0.000258,2]
[372590210,1752695448791,-2000.0,0.000258,2]
[372590211,1752695448800,-214.40824756,0.000258,3]
[372590212,1752695448810,-160.0,0.000258,3]
[372590213,1752695448819,-215.5496034,0.000258,3]
[372590214,1752695448829,-160.0,0.000258,3]
[372590215,1752695448839,-319.64,0.000258,31]
[372590216,1752695448849,-319.64,0.000258,31]
[372590217,1752695448859,-319.64,0.000258,31]
[372590218,1752695448869,-319.64,0.000258,31]
[372590219,1752695448878,-319.64,0.000258,31]
[372590220,1752695448888,-319.64,0.000258,31]
[372590221,1752695448898,-319.64,0.000258,31]
[372590222,1752695448910,-319.64,0.000258,31]
[372590223,1752695448920,-319.64,0.000258,31]
[372590224,1752695448929,-319.64,0.000258,31]
[372590225,1752695448939,-319.64,0.000258,31]
[372590226,1752695448949,-319.64,0.000258,31]
[372590227,1752695448958,-319.64,0.000258,31]
[372590228,1752695448968,-319.64,0.000258,31]
[372590229,1752695448978,-319.64,0.000258,31]
[372590230,1752695448988,-319.64,0.000258,31]
[372590231,1752695448998,-319.64,0.000258,31]
[372590232,1752695449008,-319.64,0.000258,31]
[372590233,1752695449018,-319.64,0.000258,31]
[372590234,1752695449028,-319.64,0.000258,31]
[372590235,1752695449039,-319.64,0.000258,31]
[372590236,1752695449049,-319.64,0.000258,31]
[372590237,1752695449062,-319.64,0.000258,31]
[372590238,1752695449072,-319.64,0.000258,31]
[372590239,1752695449082,-150.0,0.000258,2]
[372590240,1752695449092,-1200.0,0.0002581,2]
[372590241,1752695449103,-700.0,0.00025814,2]
[372590242,1752695449113,-151.0,0.00025843,7]
[372590243,1752695449123,-151.0,0.00025843,7]
[372590244,1752695449133,-151.0,0.00025843,7]
[372590245,1752695449143,-151.0,0.00025843,7]
[372590246,1752695449155,-151.0,0.00025843,7]
[372590247,1752695449165,-151.0,0.00025843,7]
[372590248,1752695449176,-151.0,0.00025843,7]
[372590249,1752695449185,-250.255223,0.00025843,7]
[372590250,1752695449195,-151.0,0.00025843,7]
[372590251,1752695449206,-151.0,0.00025843,7]
[372590252,1752695449216,-151.0,0.00025843,7]
[372590253,1752695449226,-151.0,0.00025843,7]
[372590254,1752695449236,-151.0,0.00025843,7]
[372590255,1752695449246,-151.0,0.00025843,7]
[372590256,1752695449256,-151.0,0.00025843,7]
[372590257,1752695449266,-151.0,0.00025843,7]
[372590258,1752695449275,-151.0,0.00025843,7]
[372590259,1752695449285,-151.0,0.00025843,7]
[372590260,1752695449294,-151.0,0.00025843,7]
[372590261,1752695449304,-151.0,0.00025843,7]
[372590262,1752695449314,-223.628985,0.00025843,7]
[372590263,1752695449324,-151.0,0.00025843,7]
[372590264,1752695449334,-151.0,0.00025843,7]
[372590265,1752695449344,-151.0,0.00025843,7]
[372590266,1752695449354,-151.0,0.00025843,7]
[372590267,1752695449364,-151.0,0.00025843,7]
[372590268,1752695449374,-151.0,0.00025843,7]
[372590269,1752695449384,-151.0,0.00025843,7]
[372590270,1752695449394,-151.0,0.00025843,7]
[372590271,1752695449405,-151.0,0.00025843,7]
[372590272,1752695449415,-230.866542,0.00025843,7]
[372590273,1752695449424,-218.907905,0.00025843,7]
[372590274,1752695449434,-218.907905,0.00025843,7]
[372590275,1752695449444,-218.907905,0.00025843,7]
[372590276,1752695449454,-218.907905,0.00025843,7]
[372590277,1752695449464,-218.907905,0.00025843,7]
[372590278,1752695449473,-218.907905,0.00025843,7]
[372590279,1752695449483,-218.907905,0.00025843,7]
[372590280,1752695449493,-218.907905,0.00025843,7]
[372590281,1752695449503,-218.907905,0.00025843,7]
[372590282,1752695449513,-218.907905,0.00025843,7]
[372590283,1752695449523,-218.907905,0.00025843,7]
[372590284,1752695449533,-218.907905,0.00025843,7]
[372590285,1752695449543,-218.907905,0.00025843,7]
[372590286,1752695449553,-218.907905,0.00025843,7]
[372590287,1752695449564,-218.907905,0.00025843,7]
[372590288,1752695449574,-218.907905,0.00025843,7]
[372590289,1752695449584,-218.907905,0.00025843,7]
[372590290,1752695449593,-218.907905,0.00025843,7]
[372590291,1752695449603,-218.907905,0.00025843,7]
[372590292,1752695449614,-218.907905,0.00025843,7]
[372590293,1752695449624,-151.0,0.00025843,7]
[372590294,1752695449633,-151.0,0.00025843,7]
[372590295,1752695449644,-151.0,0.00025843,7]
[372590296,1752695449654,-151.0,0.00025843,7]
[372590297,1752695449664,-151.0,0.00025843,7]
[372590298,1752695449675,-151.0,0.00025843,7]
[372590299,1752695449685,-151.0,0.00025843,7]
[372590300,1752695449695,-151.0,0.00025843,7]
[372590301,1752695449705,-151.0,0.00025843,7]
[372590302,1752695449715,-291.784942,0.00025843,7]
[372590303,1752695449724,-151.0,0.00025843,7]
[372590304,1752695449734,-151.0,0.00025843,7]
[372590305,1752695449744,-151.0,0.00025843,7]
[372590306,1752695449753,-151.0,0.00025843,7]
[372590307,1752695449763,-151.0,0.00025843,7]
[372590308,1752695449772,-151.0,0.00025843,7]
[372590309,1752695449783,-151.0,0.00025843,7]
[372590310,1752695449792,-151.0,0.00025843,7]
[372590311,1752695449802,-151.0,0.00025843,7]
[372590312,1752695449811,-151.0,0.00025843,7]
[372590313,1752695449821,-151.0,0.00025843,7]
[372590314,1752695449830,-151.0,0.00025843,7]
[372590315,1752695449840,-151.0,0.00025843,7]
[372590316,1752695449850,-151.0,0.00025843,7]
[372590317,1752695449859,-151.0,0.00025843,7]
[372590318,1752695449869,-151.0,0.00025843,7]
[372590319,1752695449878,-265.231764,0.00025843,7]
[372590320,1752695449888,-151.0,0.00025845,7]
[372590321,1752695449898,-151.0,0.00025845,7]
[372590322,1752695449909,-151.0,0.00025845,7]
[372590323,1752695449919,-151.0,0.00025845,7]
[372590324,1752695449928,-154.262419,0.00025845,7]
[372590325,1752695449938,-223.599487,0.00025845,7]
[372590326,1752695449947,-223.599487,0.00025845,7]
[372590327,1752695449957,-223.599487,0.00025845,7]
[372590328,1752695449967,-151.0,0.00025845,7]
[372590329,1752695449976,-223.599487,0.00025845,7]
[372590330,1752695449985,-223.599487,0.00025845,7]
[372590331,1752695449995,-223.599487,0.00025845,7]
[372590332,1752695450004,-223.599487,0.00025845,7]
[372590333,1752695450013,-223.599487,0.00025845,7]
[372590334,1752695450023,-223.599487,0.00025845,7]
[372590335,1752695450032,-223.599487,0.00025845,7]
[372590336,1752695450041,-223.599487,0.00025845,7]
[372590337,1752695450051,-223.599487,0.00025845,7]
[372590338,1752695450064,-223.599487,0.00025845,7]
[372590339,1752695450074,-223.599487,0.00025845,7]
[372590340,1752695450083,-223.599487,0.00025845,7]
[372590341,1752695450094,-223.599487,0.00025845,7]
[372590342,1752695450104,-223.599487,0.00025845,7]
[372590343,1752695450115,-223.599487,0.00025845,7]
[372590344,1752695450125,-223.599487,0.00025845,7]
[372590345,1752695450136,-223.599493,0.00025845,7]
[372590346,1752695450145,-151.0,0.00025845,7]
[372590347,1752695450158,-159.604041,0.00025845,7]
[372590348,1752695450168,-151.0,0.00025845,7]
[372590349,1752695450177,-151.0,0.00025845,7]
[372590350,1752695450187,-151.0,0.00025845,7]
[372590351,1752695450196,-151.0,0.00025845,7]
[372590352,1752695450206,-151.0,0.00025845,7]
[372590353,1752695450215,-151.0,0.00025845,7]
[372590354,1752695450224,-151.0,0.00025845,7]
[372590355,1752695450234,-151.0,0.00025845,7]
[372590356,1752695450243,-151.0,0.00025845,7]
[372590357,1752695450253,-151.0,0.00025845,7]
[372590358,1752695450263,-151.0,0.00025845,7]
[372590359,1752695450272,-151.0,0.00025845,7]
[372590360,1752695450282,-151.0,0.00025845,7]
[372590361,1752695450291,-151.0,0.00025845,7]
[372590362,1752695450302,-151.0,0.00025845,7]
[372590363,1752695450311,-151.0,0.00025845,7]
[372590364,1752695450474,-151.0,0.00025845,7]
[372590365,1752695450484,-151.0,0.00025845,7]
[372590366,1752695450494,-151.0,0.00025845,7]
[372590367,1752695450504,-151.0,0.00025845,7]
[372590368,1752695450513,-255.178236,0.00025845,7]
[372590369,1752695450523,-151.0,0.00025845,7]
[372590370,1752695450533,-151.0,0.00025845,7]
[372590371,1752695450542,-164.23352,0.00025846,7]
[372590372,1752695450552,-1280.777107,0.00025846,2]
[372590373,1752695450561,-1056901.59152337,0.00025846,20]
[372590374,1752695450639,-534.94906441,0.00025846,20]
[372590375,1752695450652,-708.43795877,0.00025846,20]
[372590376,1752695450664,-1230.92697951,0.00025846,20]
[372590377,1752695450676,-1249.0500665,0.00025846,20]
[372590378,1752695450687,-813.62704925,0.00025846,20]
[372590379,1752695450699,-1516.852922,0.00025846,20]
[372590380,1752695450711,-943.23913375,0.00025846,20]
[372590381,1752695450723,-3894.99771956,0.00025846,20]
[372590382,1752695450747,-50374.24711552,0.00025846,20]
[372590383,1752695450758,-1806.41131233,0.00025846,20]
[372590384,1752695450770,-402.67135502,0.00025846,20]
[372590385,1752695450782,-7606.7945013,0.00025846,20]
[372590386,1752695450794,-72009.20763594,0.00025846,20]
[372590387,1752695450936,-7227.04261434,0.00018868,2]
[372590388,1752695450948,-721.06662817,0.00018868,2]
[372590389,1752695450959,-10167.60265262,0.00018868,2]
[372590390,1752695450970,-460.0,0.00018959,2]
[372590391,1752695450980,-460.0,0.00018962,2]
[372590392,1752695450989,-460.0,0.00018962,2]
[372590393,1752695450999,-460.0,0.00018965,2]
[372590394,1752695451009,-1021.18,0.00018968,2]
[372590395,1752695451019,-460.0,0.00018976,2]
[372590396,1752695451029,-462.87,0.00019239,2]
[372590397,1752695451038,-223.65054367,0.00019242,2]
[372590398,1752695451050,-797.52945633,0.00019242,2]
[372590399,1752695451064,-1021.18,0.00019516,2]
[372590400,1752695451073,-1021.18,0.0001979,2]
[372590401,1752695451083,-1021.18,0.00020064,2]
[372590402,1752695451093,-1021.18,0.00020338,2]
[372590403,1752695451103,-1021.18,0.00020612,2]
[372590404,1752695451112,-1021.18,0.00020886,2]
[372590405,1752695451122,-4775394.28473624,0.00025846,20]
[372590406,1752695451283,-460.0,0.00018965,2]
[372590407,1752695451294,-1021.18,0.0002116,2]
[372590408,1752695451303,-59.35771229,0.00021434,2]
[372590412,1752695565029,150.0,0.0001762,2]
[372590425,1752695884477,188.201997,0.00013699,2]
[372590473,1752696632540,-232.91699806,0.000187,2]
[372590476,1752696632552,-165.20533425,0.00018764,2]
[372590478,1752696632564,-292.89699069,0.000188,2]
[372590479,1752696632575,-551.24993771,0.000188,2]
[372590492,1752696632933,-57.89046858,0.000188,2]
[372590493,1752696632942,-299.54,0.00018858,3]
[372590494,1752696632952,-299.54,0.00018858,3]
[372590495,1752696632961,-738.47,0.00018858,3]
[372590496,1752696632970,-300.0,0.0001886,2]
[372590497,1752696632979,-1200.0,0.0001886,2]
[372590498,1752696632989,-300.0,0.00018861,2]
[372590499,1752696632998,-168.0,0.00018861,2]
[372590500,1752696633007,-300.0,0.00018861,2]
[372590501,1752696633017,-5762.01117376,0.00018862,2]
[372590502,1752696633028,-44237.98882624,0.00018862,2]
[372590503,1752696633037,-1200.0,0.00018862,2]
[372590504,1752696633046,-460.0,0.00018862,2]
[372590505,1752696633056,-151.3496386,0.00018862,2]
[372590506,1752696633066,-460.0,0.00018862,2]
[372590507,1752696633076,-460.0,0.00018862,2]
[372590508,1752696633086,-460.0,0.00018862,2]
[372590509,1752696633096,-460.0,0.00018862,2]
[372590510,1752696633106,-460.0,0.00018862,2]
[372590511,1752696633117,-1052.62,0.00018862,2]
[372590512,1752696633128,-500.0,0.00018862,2]
[372590513,1752696633137,-156.3750634,0.00018862,2]
[372590514,1752696633146,-500.0,0.00018862,2]
[372590515,1752696633158,-261.34007635,0.00018862,2]
[372590551,1752696638524,-212.29908204,0.00018861,2]
[372590552,1752696638533,-460.0,0.00018863,2]
[372590553,1752696638544,-460.0,0.00018863,2]
[372590554,1752696638553,-460.0,0.00018864,2]
[372590555,1752696638563,-460.0,0.00018864,2]
[372590556,1752696638572,-460.0,0.00018864,2]
[372590557,1752696638581,-460.0,0.00018864,2]
[372590558,1752696638591,-460.0,0.00018864,2]
[372590559,1752696638600,-460.0,0.00018864,2]
[372590560,1752696638610,-460.0,0.00018864,2]
[372590561,1752696638619,-1690.11,0.00018864,2]
[372590562,1752696638629,-460.0,0.00018864,2]
[372590563,1752696638642,-460.0,0.00018864,2]
[372590564,1752696638652,-460.0,0.00018864,2]
[372590565,1752696638663,-3000.54,0.00018864,2]
[372590566,1752696638672,-460.0,0.00018864,2]
[372590567,1752696638682,-2032.43,0.00018864,2]
[372590568,1752696638692,-460.0,0.00018864,2]
[372590569,1752696638701,-460.0,0.00018864,2]
[372590570,1752696638711,-460.0,0.00018864,2]
[372590572,1752696638720,-460.0,0.00018864,2]
[372590574,1752696638730,-460.0,0.00018864,2]
[372590576,1752696638739,-460.0,0.00018864,2]
[372590577,1752696638749,-766.2927247,0.00018864,2]
[372590578,1752696638766,-460.0,0.00018862,2]
[372590579,1752696638775,-543.4672753,0.00018864,2]
[372590580,1752696638785,-460.0,0.00018865,2]
[372590581,1752696638795,-460.0,0.00018865,2]
[372590582,1752696638804,-302.03615459,0.00018866,2]
[372590583,1752696638814,-460.0,0.00018866,2]
[372590584,1752696638823,-182.84988515,0.00018866,2]
[372590585,1752696638834,-460.0,0.00018866,2]
[372590586,1752696638843,-460.0,0.00018866,2]
[372590587,1752696638853,-460.0,0.00018866,2]
[372590588,1752696638863,-460.0,0.00018866,2]
[372590589,1752696638872,-460.0,0.00018866,2]
[372590590,1752696638882,-460.0,0.00018866,2]
[372590591,1752696638892,-460.0,0.00018866,2]
[372590592,1752696638902,-460.0,0.00018866,2]
[372590593,1752696638912,-460.0,0.00018866,2]
[372590594,1752696638922,-460.0,0.00018866,2]
[372590595,1752696638931,-460.0,0.00018866,2]
[372590596,1752696638941,-460.0,0.00018866,2]
[372590597,1752696638951,-467.49544061,0.00018866,2]
[372590598,1752696638961,-460.0,0.00018866,2]
[372590599,1752696638970,-460.0,0.00018866,2]
[372590600,1752696638980,-460.0,0.00018866,2]
[372590601,1752696638990,-460.0,0.00018866,2]
[372590602,1752696639000,-460.0,0.00018866,2]
[372590603,1752696639009,-460.0,0.00018866,2]
[372590604,1752696639018,-460.0,0.00018866,2]
[372590605,1752696639028,-460.0,0.00018866,2]
[372590606,1752696639038,-460.0,0.00018866,2]
[372590607,1752696639047,-460.0,0.00018866,2]
[372590608,1752696639057,-460.0,0.00018866,2]
[372590609,1752696639067,-460.0,0.00018866,2]
[372590610,1752696639078,-440.0,0.00018866,2]
[372590611,1752696639088,-151.0,0.00018866,2]
[372590612,1752696639098,-500.0,0.00018866,2]
[372590613,1752696639107,-460.0,0.00018866,2]
[372590614,1752696639118,-460.0,0.00018866,2]
[372590615,1752696639127,-460.0,0.00018866,2]
[372590616,1752696639137,-460.0,0.00018866,2]
[372590617,1752696639147,-460.0,0.00018866,2]
[372590618,1752696639157,-151.0,0.00018866,2]
[372590619,1752696639167,-460.0,0.00018866,2]
[372590620,1752696639177,-460.0,0.00018866,2]
[372590621,1752696639187,-460.0,0.00018866,2]
[372590622,1752696639197,-891.72,0.00018866,2]
[372590623,1752696639207,-960.0,0.00018866,2]
[372590624,1752696639218,-460.0,0.00018866,2]
[372590625,1752696639228,-460.0,0.00018866,2]
[372590626,1752696639237,-460.0,0.00018866,2]
[372590627,1752696639247,-460.0,0.00018866,2]
[372590628,1752696639257,-527.56,0.00018866,2]
[372590629,1752696639267,-460.0,0.00018866,2]
[372590630,1752696639277,-460.0,0.00018866,2]
[372590631,1752696639286,-460.0,0.00018866,2]
[372590632,1752696639295,-460.0,0.00018866,2]
[372590633,1752696639305,-460.0,0.00018866,2]
[372590634,1752696639315,-151.0,0.00018866,2]
[372590635,1752696639324,-151.0,0.00018866,2]
[372590636,1752696639335,-151.0,0.00018866,2]
[372590637,1752696639345,-460.0,0.00018866,2]
[372590638,1752696639355,-151.0,0.00018866,2]
[372590639,1752696639367,-151.0,0.00018866,2]
[372590640,1752696639381,-460.0,0.00018866,2]
[372590641,1752696639391,-460.0,0.00018866,2]
[372590642,1752696639401,-460.0,0.00018866,2]
[372590643,1752696639410,-460.0,0.00018866,2]
[372590644,1752696639421,-460.0,0.00018866,2]
[372590645,1752696639431,-460.0,0.00018867,2]
[372590646,1752696639440,-190.60576346,0.00018867,2]
[372590647,1752696639451,-710.01,0.00018867,2]
[372590648,1752696639462,-460.0,0.00018867,2]
[372590649,1752696639471,-460.0,0.00018867,2]
[372590650,1752696639481,-460.0,0.00018867,2]
[372590651,1752696639492,-460.0,0.00018867,2]
[372590652,1752696639502,-460.0,0.00018867,2]
[372590653,1752696639511,-460.0,0.00018867,2]
[372590654,1752696639521,-460.0,0.00018867,2]
[372590655,1752696639531,-460.0,0.00018867,2]
[372590656,1752696639540,-369113.8339944,0.00018868,2]
[372590657,1752696639550,-3242.80014743,0.000189,2]
[372590658,1752696639559,-460.0,0.00018959,2]
[372590659,1752696639568,-460.0,0.00018959,2]
[372590660,1752696639578,-460.0,0.00018959,2]
[372590661,1752696639587,-460.0,0.00018959,2]
[372590662,1752696639597,-460.0,0.00018959,2]
[372590663,1752696639607,-460.0,0.00018959,2]
[372590664,1752696639616,-460.0,0.00018959,2]
[372590665,1752696639626,-460.0,0.00018959,2]
[372590666,1752696639635,-460.0,0.00018959,2]
[372590667,1752696639645,-460.0,0.00018959,2]
[372590668,1752696639655,-460.0,0.00018959,2]
[372590669,1752696639666,-460.0,0.00018959,2]
[372590670,1752696639675,-460.0,0.00018959,2]
[372590671,1752696639685,-460.0,0.00018959,2]
[372590672,1752696639694,-460.0,0.00018959,2]
[372590673,1752696639704,-460.0,0.00018959,2]
[372590674,1752696639714,-405.69301605,0.00018959,2]
[372590675,1752696639723,-460.0,0.00018959,2]
[372590676,1752696639733,-460.0,0.00018959,2]
[372590677,1752696639743,-460.0,0.00018959,2]
[372590678,1752696639752,-460.0,0.00018959,2]
[372590679,1752696639763,-460.0,0.00018959,2]
[372590680,1752696639772,-460.0,0.00018959,2]
[372590681,1752696639781,-460.0,0.00018959,2]
[372590682,1752696639791,-460.0,0.00018959,2]
[372590683,1752696639801,-460.0,0.00018959,2]
[372590684,1752696639811,-460.0,0.00018959,2]
[372590685,1752696639820,-460.0,0.00018959,2]
[372590686,1752696639830,-460.0,0.00018959,2]
[372590687,1752696639840,-460.0,0.00018959,2]
[372590688,1752696639849,-460.0,0.00018959,2]
[372590689,1752696639859,-460.0,0.0001896,2]
[372590690,1752696639870,-460.0,0.0001896,2]
[372590691,1752696639880,-500.0,0.0001896,2]
[372590693,1752696639891,-500.0,0.0001896,2]
[372590694,1752696639900,-191.13645195,0.0001896,2]
[372590695,1752696639910,-151.0,0.0001896,2]
[372590696,1752696639920,-460.0,0.0001896,2]
[372590697,1752696639930,-1125.24,0.0001896,2]
[372590698,1752696639940,-460.0,0.0001896,2]
[372590699,1752696639949,-460.0,0.0001896,2]
[372590700,1752696639959,-460.0,0.0001896,2]
[372590701,1752696639969,-784.7,0.0001896,2]
[372590702,1752696639978,-460.0,0.0001896,2]
[372590703,1752696639987,-2384.71,0.0001896,2]
[372590704,1752696639997,-460.0,0.0001896,2]
[372590705,1752696640007,-759.2,0.0001896,2]
[372590706,1752696640016,-460.0,0.00018962,2]
[372590707,1752696640026,-460.0,0.00018962,2]
[372590708,1752696640036,-175.12292489,0.00018962,2]
[372590710,1752696640045,-462.3907514,0.00018962,2]
[372590711,1752696640055,-212.21798591,0.00018962,2]
[372590712,1752696640064,-465.56975451,0.00018962,2]
[372590713,1752696640074,-460.0,0.00018962,2]
[372590714,1752696640084,-247.7883824,0.00018962,2]
[372590715,1752696640094,-460.0,0.00018962,2]
[372590717,1752696640104,-460.0,0.00018962,2]
[372590718,1752696640113,-460.0,0.00018962,2]
[372590719,1752696640123,-460.0,0.00018962,2]
[372590720,1752696640132,-460.0,0.00018962,2]
[372590721,1752696640141,-460.0,0.00018962,2]
[372590722,1752696640151,-460.0,0.00018962,2]
[372590723,1752696640160,-460.0,0.00018962,2]
[372590724,1752696640170,-460.0,0.00018962,2]
[372590725,1752696640179,-460.0,0.00018963,2]
[372590726,1752696640188,-633.0,0.00018965,2]
[372590727,1752696640198,-460.0,0.00018965,2]
[372590728,1752696640207,-460.0,0.00018965,2]
[372590729,1752696640216,-460.0,0.00018965,2]
[372590730,1752696640226,-460.0,0.00018965,2]
[372590731,1752696640235,-460.0,0.00018965,2]
[372590732,1752696640245,-460.0,0.00018965,2]
[372590733,1752696640255,-460.0,0.00018965,2]
[372590735,1752696640264,-517.48178713,0.00018965,2]
[372590737,1752696640274,-460.0,0.00018965,2]
[372590738,1752696640284,-511.9516689,0.00018965,2]
[372590739,1752696640294,-461.72022167,0.00018965,2]
[372590740,1752696640303,-2113.03,0.00018965,2]
[372590742,1752696640313,-176.7695674,0.00018965,2]
[372590743,1752696640323,-460.0,0.00018965,2]
[372590744,1752696640332,-618.73,0.00018965,2]
[372590745,1752696640341,-468.93527625,0.00018965,2]
[372590746,1752696640350,-460.0,0.00018965,2]
[372590747,1752696640360,-1109.25,0.00018965,2]
[372590749,1752696640369,-500.0,0.00018973,2]
[372590750,1752696640380,-500.0,0.00018973,2]
[372590751,1752696640390,-500.0,0.00018973,2]
[372590752,1752696640400,-500.0,0.00018973,2]
[372590753,1752696640410,-500.0,0.00018973,2]
[372590754,1752696640421,-500.0,0.00018973,2]
[372590755,1752696640430,-460.0,0.00018976,2]
[372590756,1752696640439,-460.0,0.00018976,2]
[372590757,1752696640449,-460.0,0.00018976,2]
[372590758,1752696640458,-460.0,0.00018976,2]
[372590759,1752696640467,-460.0,0.00018976,2]
[372590760,1752696640477,-460.0,0.00018976,2]
[372590761,1752696640486,-460.0,0.00018976,2]
[372590762,1752696640495,-460.0,0.00018976,2]
[372590763,1752696640505,-460.0,0.00018976,2]
[372590764,1752696640514,-460.0,0.00018976,2]
[372590765,1752696640524,-460.0,0.00018976,2]
[372590766,1752696640534,-460.0,0.00018976,2]
[372590767,1752696640544,-460.0,0.00018976,2]
[372590768,1752696640554,-460.0,0.00018976,2]
[372590769,1752696640563,-460.0,0.00018976,2]
[372590770,1752696640572,-460.0,0.00018976,2]
[372590771,1752696640581,-460.0,0.00018976,2]
[372590772,1752696640590,-462.97154576,0.00018976,2]
[372590773,1752696640600,-460.0,0.00018976,2]
[372590774,1752696640609,-460.0,0.00018976,2]
[372590775,1752696640618,-460.0,0.00019136,2]
[372590776,1752696640628,-460.0,0.00019136,2]
[372590777,1752696640637,-460.0,0.00019136,2]
[372590778,1752696640647,-460.0,0.00019136,2]
[372590779,1752696640656,-1052.62,0.00019136,2]
[372590780,1752696640666,-460.0,0.00019137,2]
[372590781,1752696640675,-367.52,0.00019137,2]
[372590782,1752696640684,-460.0,0.00019138,2]
[372590783,1752696640694,-460.0,0.00019138,2]
[372590784,1752696640703,-460.0,0.00019138,2]
[372590785,1752696640713,-1690.11,0.00019138,2]